bitfinex/quotes_SOLUSD_20250607
["timestamp","ask_amount","ask_price","bid_price","bid_amount"]
[1749305979073,6.58718134,151.81,151.78,15.37420749]
[1749305979270,4.88917291,151.8,151.78,15.37420749]
[1749305980073,4.88917291,151.8,151.79,5.09420749]
[1749305980259,11.47678819,151.8,151.79,5.09420749]
[1749305980463,6.58761528,151.8,151.79,5.09420749]
[1749305980871,11.47678819,151.8,151.79,5.09420749]
[1749305981171,6.58761528,151.8,151.79,5.09420749]
[1749305981474,11.47678819,151.8,151.79,5.09420749]
[1749305981676,23.74385635,151.83,151.79,5.09420749]
[1749305981677,6.58718134,151.81,151.79,5.09420749]
[1749305981853,4.88917291,151.8,151.79,5.09420749]
[1749305982860,4.88917291,151.8,151.78,15.37420749]
[1749305983062,6.58718134,151.81,151.78,15.37420749]
[1749305983355,4.89955808,151.8,151.78,15.37420749]
[1749305983560,6.58718134,151.81,151.78,15.37420749]
[1749305983860,4.90181892,151.8,151.78,15.37420749]
[1749305984058,11.68095495,151.82,151.78,15.37420749]
[1749305984379,4.90181976,151.81,151.78,15.37420749]
[1749305984677,4.90181976,151.8,151.78,15.37420749]
[1749305984857,4.90181976,151.79,151.78,5.09420749]
[1749305986355,11.48987892,151.79,151.77,10.28]
[1749305986651,11.48987892,151.79,151.78,5.09420749]
[1749305986652,6.58805916,151.79,151.78,5.09420749]
[1749305986875,11.49279935,151.79,151.78,5.09420749]
[1749305987278,4.90474019,151.79,151.78,5.09420749]
[1749305987786,11.49278946,151.79,151.78,5.09420749]
[1749305989485,11.49278946,151.79,151.77,10.28]
[1749305989486,11.49278946,151.79,151.77,15.37420749]
[1749305989692,4.9045194,151.78,151.77,15.37420749]
[1749305990362,4.90470305,151.78,151.77,15.37420749]
[1749305991978,6.58804927,151.79,151.77,15.37420749]
[1749305992170,6.58804927,151.79,151.77,10.28]
[1749305992358,11.20567363,151.82,151.78,5.09420749]
[1749305992560,4.90429787,151.81,151.78,5.09420749]
[1749305992760,4.90429787,151.8,151.78,5.09420749]
[1749305992953,11.20567363,151.82,151.78,5.09420749]
[1749305992954,4.90429787,151.79,151.78,5.09420749]
[1749305995267,11.49234714,151.79,151.78,5.09420749]
[1749305998370,11.49234714,151.79,151.77,10.28]
[1749305998371,11.49234714,151.79,151.77,15.37420749]
[1749305998566,4.90429787,151.78,151.77,15.37420749]
[1749306003092,4.90429787,151.78,151.77,15.37420749]
[1749306003267,11.4927812,151.78,151.77,10.28]
[1749306013937,11.4927812,151.78,151.77,15.37420749]
[1749306013938,4.90429787,151.78,151.77,15.37420749]
[1749306014125,6.58818983,151.79,151.77,15.37420749]
[1749306014327,6.58818983,151.79,151.78,5.09420749]
[1749306014518,11.49123816,151.79,151.78,5.09420749]
[1749306014719,4.90304833,151.79,151.78,5.09420749]
[1749306015212,6.58747136,151.81,151.78,5.09420749]
[1749306015418,6.58804927,151.79,151.76,5.09420749]
[1749306015655,4.9029888,151.78,151.77,10.28]
[1749306017231,4.9029888,151.78,151.77,15.37420749]
[1749306017435,6.58718134,151.81,151.77,15.37420749]
[1749306017741,4.90430104,151.8,151.77,15.37420749]
[1749306018045,4.90430214,151.79,151.77,15.37420749]
[1749306018218,28.14934219,151.81,151.77,10.28]
[1749306018219,4.90430214,151.78,151.77,10.28]
[1749306019545,11.49278547,151.78,151.77,10.28]
[1749306019845,11.49278547,151.78,151.77,15.37420749]
[1749306021922,4.90430214,151.78,151.77,15.37420749]
[1749306022217,11.49278547,151.78,151.77,15.37420749]
[1749306024434,4.90430214,151.78,151.77,15.37420749]
[1749306027348,6.58779986,151.8,151.77,15.37420749]
[1749306027529,4.90460378,151.79,151.77,15.37420749]
[1749306027740,4.90460378,151.78,151.77,15.37420749]
[1749306030458,4.90460378,151.78,151.77,10.28]
[1749306038651,4.90460378,151.78,151.77,15.37420749]
[1749306040862,6.58771189,151.8,151.77,15.37420749]
[1749306041162,4.90384761,151.79,151.78,5.09420749]
[1749306047781,4.90384761,151.79,151.78,11.68269082]
[1749306047958,4.90384761,151.79,151.78,5.09420749]
[1749306056498,4.90384761,151.79,151.78,11.68269082]
[1749306057115,4.90384761,151.79,151.78,6.58848333]
[1749306057296,4.90384761,151.79,151.78,5.09420749]
[1749306057495,4.90384761,151.79,151.78,11.68269082]
[1749306060808,4.90384761,151.79,151.77,10.28]
[1749306061001,5.09420749,151.82,151.77,15.37420749]
[1749306061193,4.90344932,151.81,151.77,15.37420749]
[1749306061394,4.90344932,151.8,151.77,15.37420749]
[1749306061600,4.90344932,151.79,151.77,15.37420749]
[1749306061808,6.58723457,151.81,151.77,15.37420749]
[1749306062007,4.90339473,151.8,151.77,15.37420749]
[1749306062210,4.90339473,151.79,151.77,21.9630089]
[1749306062426,4.90380597,151.81,151.78,5.09420749]
[1749306062593,4.90481603,151.83,151.8,5.09420749]
[1749306062794,11.22458516,151.86,151.82,5.09420749]
[1749306063021,4.90433348,151.85,151.82,5.09420749]
[1749306063194,4.90433348,151.84,151.82,15.35420749]
[1749306063396,4.90433348,151.83,151.82,15.35420749]
[1749306063593,4.90433348,151.83,151.82,21.94095495]
[1749306064525,5.09420749,151.86,151.82,21.94095495]
[1749306064721,4.8997659,151.85,151.83,5.09420749]
[1749306064917,4.8997659,151.84,151.83,5.09420749]
[1749306065428,4.8997659,151.85,151.83,5.09420749]
[1749306065729,4.8980474,151.86,151.83,11.68026793]
[1749306065914,5.09420749,151.87,151.83,11.68026793]
[1749306066228,4.89800804,151.86,151.84,5.09420749]
[1749306066431,72.73564479,151.88,151.84,5.09420749]
[1749306066617,4.89558927,151.87,151.84,5.09420749]
[1749306066817,4.89558927,151.86,151.83,11.68026793]
[1749306067015,79.31981883,151.88,151.83,11.68026793]
[1749306067221,4.89559206,151.87,151.83,11.68026793]
[1749306067421,4.89559206,151.86,151.83,11.68026793]
[1749306067620,4.89559206,151.87,151.83,11.68026793]
[1749306067807,4.89559206,151.86,151.83,11.68026793]
[1749306068135,4.89559206,151.87,151.83,11.68026793]
[1749306068336,4.89559206,151.86,151.83,11.68026793]
[1749306068535,4.89217546,151.87,151.84,5.09420749]
[1749306068727,72.73564479,151.88,151.84,5.09420749]
[1749306068919,4.89213779,151.87,151.84,5.09420749]
[1749306069115,72.73564479,151.88,151.84,5.09420749]
[1749306069308,4.89213815,151.87,151.84,5.09420749]
[1749306069940,4.89213815,151.87,151.85,5.09420749]
[1749306070347,4.89213815,151.87,151.83,6.58606044]
[1749306070348,41.6414373,151.88,151.86,11.67922]
[1749306070514,41.6414373,151.88,151.87,5.09420749]
[1749306071421,41.6414373,151.88,151.87,11.6787864]
[1749306072541,41.6414373,151.88,151.87,21.9387864]
[1749306080575,41.6414373,151.88,151.87,16.84457891]
[1749306080753,5.09420749,151.91,151.87,15.35420749]
[1749306080950,5.09420749,151.91,151.87,10.26]
[1749306081153,5.09420749,151.91,151.87,55.35420749]
[1749306082066,11.67718018,151.91,151.87,55.35420749]
[1749306082270,5.09420749,151.89,151.87,10.26]
[1749306087284,5.09420749,151.88,151.87,10.26]
[1749306088152,5.09420749,151.89,151.87,10.26]
[1749306089084,11.59420749,151.89,151.87,10.26]
[1749306089385,5.09420749,151.89,151.87,10.26]
[1749306095789,23.74385635,151.9,151.87,10.26]
[1749306096190,30.24385635,151.9,151.87,10.26]
[1749306097319,36.82718267,151.9,151.87,10.26]
[1749306098126,5.09420749,151.89,151.87,10.26]
[1749306101209,5.09420749,151.9,151.87,10.26]
[1749306102142,5.09420749,151.9,151.87,16.84447066]
[1749306102711,23.5158079,151.91,151.87,16.84447066]
[1749306103026,28.61001539,151.91,151.87,21.93867815]
[1749306103820,5.09420749,151.9,151.87,16.84447066]
[1749306104220,5.09420749,151.9,151.87,10.26]
[1749306104552,9.96036653,151.9,151.87,10.26]
[1749306106442,4.86615904,151.89,151.87,10.26]
[1749306107015,5.09420749,151.88,151.87,10.26]
[1749306107217,28.61001539,151.88,151.83,10.26]
[1749306107413,5.09420749,151.84,151.83,10.26]
[1749306107648,9.96036653,151.84,151.81,10.26]
[1749306107817,9.97866052,151.83,151.81,10.26]
[1749306108018,5.09420749,151.83,151.81,10.26]
[1749306108219,4.88445303,151.84,151.81,10.26]
[1749306108433,4.88445303,151.83,151.81,10.26]
[1749306108650,4.88445303,151.84,151.81,10.26]
[1749306108818,4.88445303,151.83,151.81,16.84699723]
[1749306111451,5.09420749,151.84,151.81,16.84699723]
[1749306111621,9.97866052,151.84,151.81,16.84699723]
[1749306111944,5.09420749,151.84,151.81,16.84699723]
[1749306112148,9.97866052,151.84,151.81,16.84699723]
[1749306112320,5.09420749,151.84,151.81,16.84699723]
[1749306112647,9.97866052,151.84,151.81,16.84699723]
[1749306112851,5.09420749,151.84,151.81,16.84699723]
[1749306113147,9.97866052,151.84,151.81,16.84699723]
[1749306113444,5.09420749,151.84,151.81,16.84699723]
[1749306113638,9.97866052,151.84,151.81,16.84699723]
[1749306113843,5.09420749,151.84,151.81,16.84699723]
[1749306114044,9.97866052,151.84,151.81,16.84699723]
[1749306114246,5.09420749,151.84,151.81,16.84699723]
[1749306114639,9.97866052,151.85,151.81,21.94120472]
[1749306115031,11.59420749,151.84,151.81,16.84699723]
[1749306115230,5.09420749,151.84,151.81,16.84699723]
[1749306125442,5.09420749,151.82,151.81,10.26]
[1749306126150,23.74385635,151.82,151.81,10.26]
[1749306126352,23.74385635,151.82,151.77,11.68295857]
[1749306126353,30.24385635,151.82,151.77,16.84875108]
[1749306126553,5.09420749,151.8,151.77,16.84875108]
[1749306128737,5.09420749,151.8,151.77,10.26]
[1749306128936,5.09420749,151.8,151.77,16.84890527]
[1749306129636,5.09420749,151.79,151.77,10.26]
[1749306129832,23.74385635,151.78,151.77,10.26]
[1749306130060,18.64964886,151.77,151.73,48.22]
[1749306130260,5.09420749,151.76,151.73,48.22]
[1749306130564,18.64964886,151.77,151.73,10.26]
[1749306130569,5.09420749,151.74,151.73,10.26]
[1749306131941,5.09420749,151.74,151.71,6.59144306]
[1749306132150,5.09420749,151.73,151.7,6.59186598]
[1749306132964,8.17859899,151.77,151.7,6.59186598]
[1749306133263,26.61470258,151.76,151.71,7.96505372]
[1749306133559,7.96505372,151.75,151.71,7.96505372]
[1749306134135,7.96505372,151.75,151.7,14.5569197]
[1749306136155,7.96505372,151.76,151.72,14.55614256]
[1749306137046,26.61470258,151.77,151.73,7.96505372]
[1749306137251,7.96505372,151.77,151.73,7.96505372]
[1749306137457,26.61470258,151.78,151.73,7.96505372]
[1749306137665,18.64964886,151.78,151.73,7.96505372]
[1749306137968,6.5,151.78,151.75,7.96505372]
[1749306138167,6.5,151.78,151.76,6.5893516]
[1749306138690,6.5,151.78,151.77,7.96505372]
[1749306139369,18.64964886,151.82,151.77,7.96505372]
[1749306139549,18.64964886,151.82,151.78,7.96505372]
[1749306140165,18.64964886,151.82,151.79,6.58804927]
[1749306143269,6.5,151.81,151.79,6.58804927]
[1749306144153,7.96505372,151.8,151.76,46.6092138]
[1749306144658,7.96505372,151.8,151.76,54.57426752]
[1749306145159,7.96505372,151.79,151.76,6.5892138]
[1749306147963,14.46505372,151.79,151.76,6.5892138]
[1749306148674,14.46505372,151.79,151.75,6.58978583]
[1749306150059,14.46505372,151.79,151.75,14.55483955]
[1749306150571,6.5,151.79,151.75,14.55483955]
[1749306151674,6.5,151.79,151.76,7.96505372]
[1749306152362,6.5,151.79,151.77,6.58891744]
[1749306152568,7.96505372,151.8,151.77,6.58891744]
[1749306153469,26.61470258,151.81,151.77,6.58891744]
[1749306153795,12.82198608,151.82,151.77,14.55397116]
[1749306153960,7.96505372,151.83,151.78,7.96505372]
[1749306154278,18.64964886,151.83,151.79,7.96505372]
[1749306154616,18.64964886,151.83,151.8,6.58761528]
[1749306154778,26.61470258,151.83,151.8,6.58761528]
[1749306154950,18.64964886,151.84,151.8,6.58761528]
[1749306155150,26.61470258,151.84,151.8,14.552669]
[1749306155571,7.96505372,151.83,151.8,6.58761528]
[1749306156175,7.96505372,151.83,151.79,16.84791303]
[1749306157851,7.96505372,151.82,151.79,16.84791303]
[1749306159475,7.96505372,151.82,151.79,10.26]
[1749306161271,7.96505372,151.82,151.79,16.84800083]
[1749306161780,7.96505372,151.83,151.79,16.84800083]
[1749306162162,14.46505372,151.83,151.79,16.84800083]
[1749306162362,7.96505372,151.83,151.79,16.84800083]
[1749306162562,12.82198608,151.83,151.79,16.84800083]
[1749306162876,7.96505372,151.83,151.79,16.84800083]
[1749306164560,14.55137093,151.83,151.79,10.26]
[1749306164886,26.61470258,151.82,151.79,10.26]
[1749306165060,7.96505372,151.8,151.79,10.26]
[1749306166461,7.96505372,151.8,151.77,6.58880181]
[1749306167186,7.96505372,151.81,151.77,6.58880181]
[1749306167563,4.85693236,151.82,151.77,14.55385553]
[1749306167768,6.5,151.81,151.77,6.58880181]
[1749306167966,6.5,151.81,151.78,7.96505372]
[1749306168178,7.96505372,151.82,151.78,7.96505372]
[1749306168491,12.82198608,151.82,151.79,6.58804927]
[1749306171888,12.82198608,151.82,151.78,6.58833148]
[1749306172079,31.47163494,151.82,151.77,14.55378664]
[1749306173285,7.96505372,151.81,151.77,14.55378664]
[1749306174195,7.96505372,151.81,151.77,6.58873292]
[1749306175397,7.96505372,151.8,151.76,64.81424366]
[1749306178299,12.82198608,151.8,151.76,64.81424366]
[1749306178486,7.96505372,151.8,151.76,64.81424366]
[1749306178799,4.85693236,151.8,151.76,64.81424366]
[1749306178997,7.96505372,151.81,151.76,64.81424366]
[1749306179301,4.88833743,151.8,151.76,64.81424366]
[1749306180504,14.55232474,151.81,151.76,64.81424366]
[1749306180675,7.96505372,151.79,151.76,10.26]
[1749306181277,4.89095942,151.78,151.76,16.84930628]
[1749306181701,7.96505372,151.8,151.76,16.84930628]
[1749306181878,4.89098867,151.79,151.76,16.84930628]
[1749306182211,4.89098867,151.78,151.76,16.84930628]
[1749306182380,7.96505372,151.8,151.76,16.84930628]
[1749306182694,4.89198176,151.79,151.76,16.84930628]
[1749306182903,4.89198176,151.78,151.76,16.84930628]
[1749306183088,7.96505372,151.8,151.76,16.84930628]
[1749306183290,4.8919812,151.79,151.76,16.84930628]
[1749306183503,4.89291755,151.78,151.76,16.84930628]
[1749306183806,7.96505372,151.8,151.76,16.84930628]
[1749306183976,4.89292119,151.79,151.76,16.84930628]
[1749306184176,4.89292119,151.78,151.76,16.84930628]
[1749306184377,7.96505372,151.8,151.76,16.84930628]
[1749306184573,4.89217285,151.79,151.76,16.84930628]
[1749306184802,4.89217285,151.78,151.76,16.84930628]
[1749306185005,7.96505372,151.8,151.76,16.84930628]
[1749306185205,4.89229452,151.79,151.76,16.84930628]
[1749306185505,4.89202434,151.78,151.76,16.84930628]
[1749306185691,1.1,151.79,151.76,16.84930628]
[1749306186002,4.8921809,151.78,151.76,16.84930628]
[1749306186302,1.1,151.79,151.76,16.84930628]
[1749306186512,4.89198399,151.78,151.76,16.84930628]
[1749306186817,7.96505372,151.8,151.76,16.84930628]
[1749306187105,4.89198072,151.79,151.76,16.84930628]
[1749306187401,4.89198072,151.78,151.76,16.84930628]
[1749306187577,7.96505372,151.79,151.76,16.84930628]
[1749306187777,4.89178223,151.78,151.76,16.84930628]
[1749306187987,7.96505372,151.79,151.76,16.84930628]
[1749306188185,4.89338745,151.78,151.76,16.84930628]
[1749306188375,7.96505372,151.79,151.76,16.84930628]
[1749306188594,4.89315302,151.78,151.76,16.84930628]
[1749306188788,7.96505372,151.79,151.76,16.84930628]
[1749306188984,12.85849549,151.78,151.76,10.26]
[1749306189190,12.85849549,151.77,151.76,10.26]
[1749306189385,31.50814435,151.77,151.76,10.26]
[1749306190186,38.09708332,151.77,151.72,24.81597424]
[1749306190391,7.96505372,151.75,151.72,16.85092052]
[1749306190696,7.96505372,151.75,151.72,10.26]
[1749306190697,12.85849549,151.75,151.72,10.26]
[1749306190902,7.96505372,151.75,151.72,16.85100123]
[1749306191104,12.85849549,151.75,151.72,16.85100123]
[1749306191395,7.96505372,151.75,151.72,16.85100123]
[1749306191580,12.85849549,151.75,151.72,16.85100123]
[1749306191890,7.96505372,151.75,151.72,16.85100123]
[1749306193902,7.96505372,151.75,151.72,10.26]
[1749306194208,7.96505372,151.74,151.72,10.26]
[1749306200013,14.46505372,151.74,151.72,10.26]
[1749306200987,7.96505372,151.73,151.72,10.26]
[1749306201304,18.64964886,151.72,151.68,15.35923745]
[1749306201487,23.74888631,151.72,151.68,50.28]
[1749306202799,5.09923745,151.73,151.69,5.09923745]
[1749306203196,14.46723395,151.74,151.69,7.96723395]
[1749306203395,14.46723395,151.74,151.68,56.87267386]
[1749306203396,6.5,151.74,151.71,7.96723395]
[1749306203815,26.61688281,151.75,151.71,7.96723395]
[1749306204813,26.61688281,151.75,151.72,6.59108884]
[1749306205307,18.64964886,151.75,151.72,6.59108884]
[1749306206204,7.96723395,151.74,151.69,6.59239237]
[1749306206519,26.61688281,151.75,151.71,7.96723395]
[1749306207100,26.61688281,151.75,151.7,7.96723395]
[1749306207299,26.61688281,151.75,151.7,14.55880353]
[1749306208103,26.61688281,151.75,151.71,7.96723395]
[1749306209401,7.96723395,151.74,151.7,7.96723395]
[1749306209592,7.96723395,151.73,151.69,14.55945208]
[1749306210321,7.96723395,151.72,151.68,10.26]
[1749306210623,18.64964886,151.72,151.68,24.82003578]
[1749306212405,18.64964886,151.72,151.68,16.85280183]
[1749306212606,18.64964886,151.72,151.68,24.82003578]
[1749306213526,7.96723395,151.72,151.68,24.82003578]
[1749306215711,18.64964886,151.72,151.68,24.82003578]
[1749306216423,6.5,151.74,151.69,7.96723395]
[1749306216729,7.96723395,151.73,151.69,7.96723395]
[1749306217627,7.96723395,151.72,151.68,24.82003578]
[1749306220635,26.61688281,151.72,151.68,24.82003578]
[1749306222831,26.61688281,151.72,151.68,16.85280183]
[1749306223309,7.96723395,151.71,151.68,16.85280183]
[1749306223643,7.96723395,151.69,151.68,10.26]
[1749306223803,26.61688281,151.7,151.68,10.26]
[1749306224608,7.96723395,151.69,151.68,10.26]
[1749306225502,26.61688281,151.69,151.66,8.33333333]
[1749306225704,7.96723395,151.67,151.66,8.33333333]
[1749306225919,26.61688281,151.69,151.66,8.33333333]
[1749306226435,7.96723395,151.7,151.66,14.9269738]
[1749306227925,33.11688281,151.71,151.67,7.96723395]
[1749306228342,33.11688281,151.71,151.66,22.89420775]
[1749306228633,7.96723395,151.7,151.66,22.89420775]
[1749306229829,33.11688281,151.71,151.66,22.89420775]
[1749306230011,7.96723395,151.69,151.66,14.9269738]
[1749306231442,5.10193532,151.67,151.66,8.33333333]
[1749306232049,5.10193532,151.68,151.66,8.33333333]
[1749306233314,7.97294083,151.68,151.66,8.33333333]
[1749306233524,4.87002861,151.69,151.66,14.92682256]
[1749306233742,7.97294083,151.68,151.66,14.92682256]
[1749306234118,7.97294083,151.68,151.66,8.33333333]
[1749306234823,7.97294083,151.68,151.66,14.92699953]
[1749306235018,26.62258969,151.7,151.66,14.92699953]
[1749306235949,7.97294083,151.69,151.66,14.92699953]
[1749306236722,7.97294083,151.69,151.66,8.33333333]
[1749306237237,7.97294083,151.69,151.66,14.92686599]
[1749306238350,12.84296944,151.7,151.66,14.92686599]
[1749306239158,7.97294083,151.69,151.66,14.92686599]
[1749306240854,7.97294083,151.69,151.66,8.33333333]
[1749306241031,7.97294083,151.69,151.66,14.92693959]
[1749306242436,26.62258969,151.69,151.66,14.92693959]
[1749306245158,31.5026704,151.69,151.66,14.92693959]
[1749306245351,26.62258969,151.69,151.66,14.92693959]
[1749306245655,31.5026704,151.69,151.66,14.92693959]
[1749306245953,26.62258969,151.69,151.66,14.92693959]
[1749306246150,31.5026704,151.69,151.66,14.92693959]
[1749306246354,26.62258969,151.69,151.66,14.92693959]
[1749306246555,31.5026704,151.69,151.66,14.92693959]
[1749306246733,26.62258969,151.69,151.66,14.92693959]
[1749306246935,31.5026704,151.69,151.66,14.92693959]
[1749306247153,26.62258969,151.69,151.66,14.92693959]
[1749306247458,31.5026704,151.69,151.66,14.92693959]
[1749306248043,26.62258969,151.69,151.66,14.92693959]
[1749306248252,31.5026704,151.69,151.66,14.92693959]
[1749306248450,26.62258969,151.69,151.66,14.92693959]
[1749306248656,31.5026704,151.69,151.66,14.92693959]
[1749306248847,26.62258969,151.69,151.66,14.92693959]
[1749306249036,31.5026704,151.69,151.66,14.92693959]
[1749306249236,26.62258969,151.69,151.66,14.92693959]
[1749306249458,31.5026704,151.69,151.66,14.92693959]
[1749306249661,26.62258969,151.69,151.66,14.92693959]
[1749306250264,31.5026704,151.69,151.66,14.92693959]
[1749306250447,18.64964886,151.69,151.66,14.92693959]
[1749306250647,4.88008071,151.7,151.66,22.89988042]
[1749306251036,12.85302154,151.7,151.66,22.89988042]
[1749306251359,7.97294083,151.7,151.66,22.89988042]
[1749306251547,12.8556085,151.69,151.66,14.92693959]
[1749306254671,7.97294083,151.69,151.66,14.92693959]
[1749306255266,5.10186476,151.69,151.66,14.92693959]
[1749306255845,4.88706483,151.68,151.66,14.92693959]
[1749306256045,4.88676916,151.68,151.66,8.33333333]
[1749306256257,5.10186476,151.68,151.66,8.33333333]
[1749306256449,4.88726344,151.69,151.66,8.33333333]
[1749306256654,18.64964886,151.7,151.66,8.33333333]
[1749306256870,23.75151362,151.67,151.66,8.33333333]
[1749306257045,28.63884801,151.67,151.66,8.33333333]
[1749306257247,23.53698325,151.67,151.66,8.33333333]
[1749306257569,28.63884801,151.67,151.66,8.33333333]
[1749306258462,41.33544428,151.67,151.66,8.33333333]
[1749306262067,28.63884801,151.67,151.66,8.33333333]
[1749306262256,61.13884801,151.67,151.66,8.33333333]
[1749306262675,56.03698325,151.67,151.66,8.33333333]
[1749306262849,35.13884801,151.67,151.66,8.33333333]
[1749306263265,38.01219031,151.67,151.66,8.33333333]
[1749306265345,30.03698325,151.67,151.66,14.92702975]
[1749306265562,18.64964886,151.69,151.66,22.90223681]
[1749306265877,23.53698325,151.69,151.66,22.90223681]
[1749306266077,18.64964886,151.69,151.66,22.90223681]
[1749306266374,23.53698325,151.69,151.66,22.90223681]
[1749306266547,4.88733439,151.7,151.66,14.92702975]
[1749306266748,4.88733439,151.7,151.66,22.90223681]
[1749306266956,18.64964886,151.69,151.66,14.92702975]
[1749306267175,31.51219031,151.69,151.66,8.33333333]
[1749306267346,26.62485592,151.69,151.66,8.33333333]
[1749306267777,31.51219031,151.69,151.66,8.33333333]
[1749306267966,26.62485592,151.69,151.66,8.33333333]
[1749306268557,4.88448607,151.68,151.66,8.33333333]
[1749306269173,4.88448607,151.68,151.66,14.92697859]
[1749306269355,4.88448607,151.68,151.66,8.33333333]
[1749306269975,26.62485592,151.67,151.66,8.33333333]
[1749306270175,31.50921239,151.67,151.66,8.33333333]
[1749306270476,26.62485592,151.67,151.66,8.33333333]
[1749306270663,31.50921239,151.67,151.66,8.33333333]
[1749306271074,38.10247407,151.67,151.66,8.33333333]
[1749306272289,44.60247407,151.67,151.66,8.33333333]
[1749306275961,38.00921239,151.67,151.66,8.33333333]
[1749306277373,44.60247407,151.67,151.66,8.33333333]
[1749306280289,38.00921239,151.67,151.66,8.33333333]
[1749306280492,30.03400533,151.67,151.66,8.33333333]
[1749306280670,38.00921239,151.67,151.66,8.33333333]
[1749306281296,44.60247407,151.67,151.66,8.33333333]
[1749306284588,11.38659094,151.67,151.66,8.33333333]
[1749306284797,38.01144686,151.67,151.66,8.33333333]
[1749306286905,30.0362398,151.67,151.66,8.33333333]
[1749306287202,25.14964886,151.67,151.66,8.33333333]
[1749306287383,30.0362398,151.67,151.66,8.33333333]
[1749306287986,25.14964886,151.67,151.66,8.33333333]
[1749306288168,30.0362398,151.67,151.66,8.33333333]
[1749306288375,4.88659094,151.68,151.66,22.90223681]
[1749306288578,4.88659094,151.69,151.67,7.97520706]
[1749306288778,4.88879359,151.69,151.68,7.97520706]
[1749306288979,4.88879359,151.69,151.67,7.97520706]
[1749306289175,18.64964886,151.7,151.67,14.56845136]
[1749306289985,23.53848147,151.7,151.67,14.56845136]
[1749306290491,6.5,151.69,151.67,14.56845136]
[1749306291094,23.53803496,151.7,151.67,14.56845136]
[1749306291488,4.8883861,151.7,151.68,7.97520706]
[1749306291692,4.8883861,151.71,151.68,7.97520706]
[1749306291898,26.62485592,151.72,151.68,7.97520706]
[1749306292083,4.88794323,151.71,151.67,14.56845136]
[1749306292287,4.88794323,151.7,151.68,7.97520706]
[1749306292600,4.88794323,151.71,151.68,7.97520706]
[1749306292808,4.88794323,151.7,151.68,7.97520706]
[1749306293106,4.88794323,151.7,151.67,6.5932443]
[1749306293107,4.88794323,151.71,151.69,7.97520706]
[1749306293705,4.88794323,151.71,151.68,7.97520706]
[1749306295308,23.53591125,151.72,151.68,7.97520706]
[1749306295490,23.53591125,151.72,151.69,7.97520706]
[1749306295690,4.88626239,151.72,151.7,7.97520706]
[1749306296092,4.88626239,151.72,151.69,18.59520706]
[1749306296610,23.53591125,151.73,151.69,18.59520706]
[1749306297507,31.51111831,151.73,151.69,25.18746243]
[1749306298492,31.51111831,151.73,151.69,10.62]
[1749306298493,7.97520706,151.72,151.69,10.62]
[1749306298696,7.97520706,151.71,151.69,10.62]
[1749306300491,14.56690122,151.71,151.69,10.62]
[1749306301209,7.97520706,151.71,151.69,10.62]
[1749306303904,12.86146945,151.71,151.69,10.62]
[1749306304210,14.56675177,151.71,151.69,10.62]
[1749306304382,19.45301416,151.71,151.69,10.62]
[1749306304584,7.97520706,151.7,151.69,10.62]
[1749306305207,26.62485592,151.7,151.69,10.62]
[1749306308099,18.64964886,151.7,151.69,10.62]
[1749306308405,26.62485592,151.7,151.69,10.62]
[1749306309299,31.51111831,151.7,151.69,10.62]
[1749306309702,26.62485592,151.7,151.69,10.62]
[1749306310414,31.51111831,151.7,151.69,10.62]
[1749306310589,26.62485592,151.7,151.69,10.62]
[1749306310785,31.51111831,151.7,151.69,10.62]
[1749306311515,18.64964886,151.7,151.69,10.62]
[1749306311710,23.53591125,151.7,151.69,10.62]
[1749306312093,18.64964886,151.7,151.69,10.62]
[1749306313093,23.53591125,151.7,151.69,10.62]
[1749306313310,18.64964886,151.7,151.69,10.62]
[1749306313817,23.53591125,151.7,151.69,10.62]
[1749306314123,23.53591125,151.7,151.67,6.5932457]
[1749306314294,23.53591125,151.7,151.66,74.02206551]
[1749306315706,18.64964886,151.7,151.66,74.02206551]
[1749306315925,23.53591125,151.7,151.66,74.02206551]
[1749306317317,18.64964886,151.7,151.66,74.02206551]
[1749306317525,4.88626239,151.7,151.67,7.97520706]
[1749306318112,12.86146945,151.71,151.67,7.97520706]
[1749306318623,12.86146945,151.71,151.67,14.56804397]
[1749306319025,11.38626239,151.7,151.67,14.56804397]
[1749306319325,4.88626239,151.7,151.67,14.56804397]
[1749306319998,4.88626239,151.7,151.67,6.59283691]
[1749306320698,4.88708084,151.7,151.67,6.59283691]
[1749306321421,4.88708084,151.7,151.68,7.97520706]
[1749306321611,4.88708084,151.71,151.68,7.97520706]
[1749306323336,26.62485592,151.72,151.69,6.59239237]
[1749306323511,4.88940941,151.71,151.69,6.59239237]
[1749306323943,4.88912153,151.71,151.69,6.59239237]
[1749306324231,18.64964886,151.69,151.66,8.33333333]
[1749306324542,26.62485592,151.69,151.66,8.33333333]
[1749306324718,31.51428409,151.69,151.66,8.33333333]
[1749306325038,4.88942817,151.69,151.66,14.92687171]
[1749306325433,33.97520706,151.7,151.66,14.92687171]
[1749306325630,4.89017228,151.69,151.66,14.92687171]